bitfinex/quotes_SOLUSD_20211001
["timestamp","ask_amount","ask_price","bid_price","bid_amount"]
[1633059341409,3.03,139.03,138.92,28.70895734]
[1633059342006,3.03,139.03,138.94,437.8756836]
[1633059344509,3.03,139.06,138.95,31.75794612]
[1633059344709,92.12495292,139.09,138.96,13.83170241]
[1633059344910,3.03,139.1,138.98,23.29910209]
[1633059345108,3.03,139.1,138.99,3.03]
[1633059345509,3.03,139.1,138.99,8.66542961]
[1633059345712,3.03,139.12,138.99,81.62712961]
[1633059346212,3.03,139.12,139.0,5.63542961]
[1633059346410,3.03,139.12,139.01,32.6165277]
[1633059346811,3.03,139.12,139.02,5.63542961]
[1633059347012,3.03,139.12,139.02,8.66542961]
[1633059348916,3.03,139.12,139.02,3.03]
[1633059349514,3.03,139.12,139.04,427.29019155]
[1633059349715,3.03,139.12,139.05,22.30658229]
[1633059350315,3.03,139.14,139.05,22.30658229]
[1633059350916,155.722,139.17,139.06,69.0]
[1633059351116,9.50583795,139.18,139.08,25.5614981]
[1633059351318,3.03,139.21,139.09,3.03]
[1633059355623,3.03,139.21,139.09,8.66542961]
[1633059359544,3.03,139.24,139.09,40.32981959]
[1633059360750,3.03,139.24,139.11,27.88291783]
[1633059360952,3.03,139.24,139.12,38.92]
[1633059361454,3.03,139.24,139.13,5.63542961]
[1633059361654,3.03,139.24,139.14,27.5019088]
[1633059362052,3.03,139.24,139.14,33.13733841]
[1633059362652,73.5093,139.25,139.14,33.13733841]
[1633059362851,73.5093,139.25,139.15,35.89]
[1633059363050,73.5093,139.25,139.16,3.03]
[1633059363251,73.5093,139.25,139.17,24.17995276]
[1633059366256,3.03,139.26,139.17,24.17995276]
[1633059375063,2.53,139.26,139.17,24.17995276]
[1633059377864,77.9091,139.28,139.18,3.03]
[1633059379965,77.9091,139.28,139.21,30.35216291]
[1633059382166,77.9091,139.28,139.2,535.63640242]
[1633059383165,77.9091,139.28,139.19,21.29943894]
[1633059384166,87.40810708,139.28,139.19,21.29943894]
[1633059385167,77.9091,139.28,139.19,21.29943894]
[1633059385567,87.40810708,139.28,139.19,21.29943894]
[1633059385766,77.9091,139.28,139.19,21.29943894]
[1633059387773,77.9091,139.28,139.16,8.66542961]
[1633059387970,100.0871,139.28,139.16,3.03]
[1633059388169,120.5484876,139.28,139.14,416.11735821]
[1633059388368,162.65755986,139.28,139.14,410.4819286]
[1633059388571,9.50242129,139.23,139.14,410.4819286]
[1633059388770,33.27842129,139.23,139.14,410.4819286]
[1633059390178,30.24842129,139.23,139.14,413.5119286]
[1633059390372,9.50242129,139.23,139.14,413.5119286]
[1633059390972,9.50242129,139.23,139.14,3.03]
[1633059392175,9.50242129,139.23,139.16,27.22423664]
[1633059392575,9.50242129,139.23,139.14,6.84895387]
[1633059392776,9.50242129,139.23,139.15,8.32148525]
[1633059392975,9.50242129,139.23,139.14,3.03]
[1633059393177,9.50242129,139.23,139.15,8.32129495]
[1633059393575,9.50242129,139.23,139.16,25.05569276]
[1633059397779,9.50242129,139.23,139.14,3.03]
[1633059398976,12.53173825,139.24,139.14,32.08271264]
[1633059402684,12.53173825,139.24,139.14,29.05271264]
[1633059402882,18.16716786,139.24,139.12,6.86001565]
[1633059403086,18.16716786,139.24,139.13,8.32240727]
[1633059403284,18.16716786,139.24,139.11,12.15904882]
[1633059403481,18.16716786,139.24,139.12,3.83231351]
[1633059403682,18.16716786,139.24,139.11,12.15360369]
[1633059403881,18.16716786,139.24,139.13,29.78303752]
[1633059404582,35.06301474,139.24,139.11,3.83118411]
[1633059404782,35.06301474,139.24,139.11,12.15381173]
[1633059405587,35.06301474,139.24,139.11,36.22107744]
[1633059405984,35.06301474,139.24,139.12,8.3225298]
[1633059406987,35.06301474,139.24,139.11,24.06726571]
[1633059407186,35.06301474,139.24,139.1,3.84112143]
[1633059407386,112.86166256,139.24,139.1,12.16418395]
[1633059407587,112.86166256,139.24,139.09,345.58510251]
[1633059407588,126.69088,139.23,139.09,345.58510251]
[1633059407788,3.05088,139.22,139.09,345.58510251]
[1633059407989,9.50583795,139.18,139.04,3.92625299]
[1633059408200,12.53652158,139.17,139.05,3.92596647]
[1633059408389,92.05722158,139.17,139.04,3.93287434]
[1633059408688,92.05722158,139.17,139.03,3.93486417]
[1633059408689,141.74376392,139.17,139.03,3.93486417]
[1633059408888,22.53127649,139.16,139.02,12.27940938]
[1633059409089,3.03,139.15,139.02,8.32634206]
[1633059409292,38.83219417,139.15,139.01,8.32820455]
[1633059409489,22.53127649,139.14,139.04,532.00356287]
[1633059409689,3.03,139.13,139.04,532.00356287]
[1633059409889,24.22019417,139.13,139.04,532.00356287]
[1633059410088,24.22019417,139.13,139.0,29.93238614]
[1633059410089,16.89584688,139.12,139.0,29.93238614]
[1633059410289,3.03,139.11,138.99,3.98663396]
[1633059410489,82.7543,139.11,138.99,8.32849508]
[1633059410688,101.40954165,139.11,138.99,538.21058972]
[1633059410891,101.40954165,139.11,138.99,8.32849508]
[1633059411088,101.40954165,139.11,138.98,7.02211767]
[1633059411289,101.40954165,139.11,138.99,8.32861271]
[1633059411689,101.40954165,139.11,138.98,22.67609946]
[1633059412292,107.04497126,139.11,138.98,22.67609946]
[1633059415294,135.54131943,139.11,138.96,3.03]
[1633059416297,135.54131943,139.11,138.95,59.49741942]
[1633059417896,135.54131943,139.11,138.96,3.03]
[1633059418499,195.54131943,139.11,138.96,3.03]
[1633059419098,30.0,139.1,138.96,3.03]
[1633059419298,3.03,139.09,138.96,3.03]
[1633059419500,21.68524165,139.09,138.96,3.03]
[1633059419899,21.68524165,139.09,138.96,38.92]
[1633059420700,18.65524165,139.08,138.96,38.92]
[1633059420900,3.03,139.07,138.96,38.92]
[1633059421900,3.03,139.07,138.96,40.90137824]
[1633059422100,3.03,139.07,138.98,24.59326128]
[1633059424902,3.03,139.07,138.96,37.84234749]
[1633059425503,3.03,139.07,138.96,35.89]
[1633059425703,3.03,139.07,138.96,37.84418165]
[1633059426105,3.03,139.07,138.96,61.40884789]
[1633059426304,3.03,139.07,138.96,63.36150275]
[1633059426511,3.03,139.07,138.96,37.84265486]
[1633059426704,5.63542961,139.06,138.94,521.00069513]
[1633059426903,5.63542961,139.06,138.94,519.03074476]
[1633059426904,3.03,139.05,138.94,519.03074476]
[1633059427105,77.06031298,139.05,138.94,519.03074476]
[1633059427306,24.29067126,139.04,138.94,519.03074476]
[1633059427606,21.68524165,139.03,138.92,1.98379759]
[1633059428005,18.65524165,139.02,138.92,1.98379759]
[1633059428205,3.03,139.01,138.92,1.98379759]
[1633059428405,100.1864,139.01,138.91,1.99216467]
[1633059428605,112.22237503,139.01,138.91,1.99216467]
[1633059429205,35.43197503,139.01,138.91,1.99216467]
[1633059429605,35.43197503,139.01,138.92,1.99130519]
[1633059430007,23.396,139.01,138.92,23.65347858]
[1633059430207,3.03,139.01,138.92,23.65347858]
[1633059430406,3.03,139.01,138.95,30.06304082]
[1633059430806,3.03,139.01,138.95,32.03348332]
[1633059431209,3.03,139.01,138.95,30.06304082]
[1633059431809,3.03,139.01,138.95,32.03267778]
[1633059432408,3.03,139.01,138.95,30.06304082]
[1633059432607,3.03,139.01,138.95,32.03582499]
[1633059433009,3.03,139.01,138.95,1.97278417]
[1633059433609,3.03,139.01,138.96,1.99408119]
[1633059434710,3.03,139.01,138.97,2.02907174]
[1633059435712,3.03,139.01,138.98,2.03358804]
[1633059436312,3.03,139.01,138.97,2.04236884]
[1633059436514,3.03,139.01,138.96,2.04533152]
[1633059436715,3.03,139.01,138.97,2.0454846]
[1633059437713,3.03,139.01,138.98,2.04923131]
[1633059438919,3.03,139.01,138.99,2.04733535]
[1633059440417,3.03,139.01,139.0,2.04572729]
[1633059440618,3.03,139.01,138.99,2.04686922]
[1633059440819,3.03,139.01,139.0,2.04390904]
[1633059441019,3.03,139.01,138.98,25.47039958]
[1633059441217,3.03,139.01,138.99,8.33029299]
[1633059442222,3.03,139.04,138.99,8.33029299]
[1633059442419,3.03,139.04,139.01,2.03441097]
[1633059442619,3.03,139.04,139.02,2.03176374]
[1633059445231,3.03,139.04,139.01,2.03888057]
[1633059445421,3.03,139.04,139.0,2.03987028]
[1633059445622,3.03,139.04,139.01,2.03314989]
[1633059446024,3.03,139.04,139.02,2.01025038]
[1633059447623,3.03,139.04,139.03,25.36548563]
[1633059448026,3.03,139.04,139.03,27.37278511]
[1633059448727,3.03,139.04,139.03,2.00729948]
[1633059450829,3.03,139.06,139.04,22.64942944]
[1633059451028,3.03,139.06,139.05,1.9979807]
[1633059451430,3.03,139.06,139.04,2.00141508]
[1633059452632,3.03,139.06,139.03,2.01381845]
[1633059452830,3.03,139.06,139.01,2.03144447]
[1633059453034,3.03,139.06,139.0,2.0363119]
[1633059453231,3.03,139.06,139.01,2.03174634]
[1633059453832,33.03,139.06,139.01,2.03174634]
[1633059454035,63.03,139.06,139.01,2.03174634]
[1633059454653,3.03,139.06,139.03,2.02647987]
[1633059455453,3.03,139.06,139.04,2.02405243]
[1633059456054,3.03,139.06,139.03,2.02772478]
[1633059457254,3.03,139.06,139.04,2.02933692]
[1633059458257,3.03,139.06,139.03,2.03846924]
[1633059458457,8.66542961,139.06,139.02,2.06986288]
[1633059458655,8.66542961,139.06,138.95,28.51092261]
[1633059458656,8.66542961,139.06,139.01,2.07448359]
[1633059459456,38.66542961,139.06,139.01,2.07448359]
[1633059459858,68.66542961,139.06,139.01,2.07448359]
[1633059461559,33.03,139.06,139.02,2.07156794]
[1633059461759,3.03,139.06,139.04,2.05544692]
[1633059462460,3.03,139.06,139.04,20.56144692]
[1633059463661,3.03,139.06,139.05,2.04440148]
[1633059464962,3.03,139.08,139.04,18.506]
[1633059465165,3.03,139.08,139.07,2.06924137]
[1633059465363,3.03,139.08,139.07,45.51988982]
[1633059465963,3.03,139.1,139.07,43.45064845]
[1633059466167,3.03,139.1,139.08,2.0633587]
[1633059466364,3.03,139.1,139.09,2.06852123]
[1633059467364,3.03,139.1,139.08,2.06663589]
[1633059467768,63.03,139.12,139.09,2.06501731]
[1633059467965,33.03,139.12,139.1,28.94815942]
[1633059468167,77.1267,139.14,139.1,28.94815942]
[1633059468566,3.03,139.14,139.1,28.94815942]
[1633059468768,3.03,139.14,139.1,31.00032595]
[1633059468966,3.03,139.16,139.1,31.00032595]
[1633059469167,3.03,139.16,139.1,28.94815942]
[1633059470568,3.03,139.16,139.1,30.99531519]
[1633059471167,3.03,139.16,139.11,2.06407697]
[1633059471368,3.03,139.16,139.1,31.02656439]
[1633059471971,3.03,139.16,139.11,2.07834958]
[1633059472372,18.73785276,139.18,139.1,31.0262717]
[1633059472974,3.03,139.18,139.1,31.0262717]
[1633059473170,3.03,139.18,139.1,49.2902717]
[1633059475272,3.03,139.18,139.1,28.94815942]
[1633059477674,3.03,139.18,139.1,46.24215942]
[1633059477876,3.03,139.18,139.1,48.31970676]
[1633059479575,3.03,139.18,139.1,19.37154734]
[1633059479775,3.03,139.18,139.08,2.07758435]
[1633059479976,8.66542961,139.18,139.1,391.78189751]
[1633059480176,8.66542961,139.18,139.07,2.07769954]
[1633059480581,24.37328237,139.18,139.08,21.27627483]
[1633059480981,18.73785276,139.18,139.08,21.27627483]
[1633059481581,18.73785276,139.18,139.08,23.35371768]
[1633059481780,18.73785276,139.18,139.09,2.07736722]
[1633059482179,18.73785276,139.18,139.08,23.35376903]
[1633059482380,18.73785276,139.18,139.08,21.27627483]
[1633059482981,18.73785276,139.18,139.07,2.07755835]
[1633059483189,24.37328237,139.18,139.07,2.07755835]
[1633059483383,45.01628237,139.18,139.06,2.0777313]
[1633059483982,18.73785276,139.18,139.08,26.05959023]
[1633059485187,18.73785276,139.18,139.08,45.87359023]
[1633059485385,3.03,139.18,139.08,47.95124498]
[1633059485584,3.03,139.18,139.09,2.07757514]
[1633059485787,3.03,139.18,139.1,2.07748146]
[1633059485985,3.03,139.18,139.11,28.55888225]
[1633059486185,3.03,139.18,139.11,51.31720136]
[1633059487786,3.03,139.18,139.12,2.07717286]
[1633059489187,3.03,139.18,139.12,28.94160247]
[1633059489387,3.03,139.21,139.12,28.94160247]
[1633059489590,3.03,139.23,139.15,29.41297759]
[1633059489791,3.03,139.23,139.15,52.29547885]
[1633059491391,3.03,139.23,139.16,2.07396178]
[1633059493092,3.03,139.23,139.18,22.62220025]
[1633059495093,3.03,139.23,139.15,2.07765822]
[1633059495897,3.03,139.23,139.16,2.07759258]
[1633059496094,3.03,139.23,139.17,26.50339986]
[1633059496493,3.03,139.23,139.16,2.07759258]
[1633059496693,23.50342961,139.23,139.15,2.07779393]
[1633059496893,39.65544903,139.23,139.14,375.05330549]
[1633059497096,39.65544903,139.23,139.13,2.07816114]
[1633059497293,34.02001942,139.23,139.14,2.07804746]
[1633059497494,34.02001942,139.23,139.15,23.63464367]
[1633059497894,19.18201942,139.23,139.16,2.07773886]
[1633059498497,19.18201942,139.23,139.15,23.63455952]
[1633059498698,19.18201942,139.23,139.16,2.07789625]
[1633059501299,19.18201942,139.23,139.15,23.63467159]
[1633059501498,19.18201942,139.23,139.15,2.07803444]
[1633059503498,19.18201942,139.23,139.15,30.53190569]
[1633059503699,19.18201942,139.23,139.16,2.07801457]
[1633059506202,19.18201942,139.23,139.15,30.53209505]
[1633059506402,19.18201942,139.23,139.16,2.07830381]
[1633059506801,19.18201942,139.23,139.15,2.07837076]
[1633059507401,19.18201942,139.23,139.14,2.07867176]
[1633059507600,19.18201942,139.23,139.15,2.07857861]
[1633059508004,24.81744903,139.23,139.15,2.07857861]
[1633059508201,24.81744903,139.23,139.14,2.07876831]
[1633059508904,30.0,139.22,139.14,2.07876831]
[1633059509104,3.03,139.21,139.14,2.07876831]
[1633059512111,3.03,139.21,139.15,27.3703987]
[1633059512308,3.03,139.21,139.15,52.93104918]
[1633059512707,3.03,139.21,139.15,25.56065048]
[1633059513707,3.03,139.21,139.16,2.07896172]
[1633059514509,3.03,139.21,139.16,31.89844193]
[1633059515508,3.03,139.21,139.16,2.07896172]
[1633059517110,3.03,139.21,139.17,2.07927184]
[1633059517310,3.03,139.21,139.17,25.15418441]
[1633059517509,3.03,139.21,139.17,2.07927184]
[1633059517909,3.03,139.21,139.16,2.07930434]
[1633059518114,3.03,139.21,139.17,2.07848063]
[1633059518711,3.03,139.21,139.16,2.07935934]
[1633059518911,3.03,139.21,139.17,2.07926141]
[1633059520714,3.03,139.21,139.16,2.07937443]
[1633059521515,3.03,139.21,139.17,2.07936448]
[1633059522316,3.03,139.21,139.16,2.07944867]
[1633059522715,3.03,139.21,139.17,2.07456904]
[1633059524818,3.03,139.21,139.16,2.07427691]
[1633059525018,3.03,139.21,139.17,2.07308272]
[1633059527619,3.03,139.21,139.16,2.04198625]
[1633059530622,3.03,139.21,139.17,1.99747137]
[1633059530821,16.15201942,139.22,139.18,26.23976094]
[1633059531022,3.03,139.21,139.19,1.97732689]
[1633059531223,3.03,139.21,139.2,1.97543766]
[1633059531424,3.03,139.21,139.2,15.753]
[1633059531622,12.53173825,139.24,139.21,23.24184898]
[1633059532026,3.03,139.24,139.22,1.95735963]
[1633059532229,3.03,139.24,139.21,25.19761782]
[1633059532626,3.03,139.26,139.21,25.19761782]
[1633059532825,3.03,139.26,139.22,1.94314231]
[1633059533026,3.03,139.28,139.24,1.93336006]
[1633059533225,3.03,139.28,139.25,25.32227843]
[1633059533427,3.03,139.3,139.25,25.32227843]
[1633059536729,3.03,139.3,139.24,15.929]
[1633059537931,3.03,139.3,139.22,27.15467201]
[1633059538130,3.03,139.3,139.22,25.22913612]
[1633059538933,3.03,139.3,139.22,27.14411036]
[1633059539136,3.03,139.3,139.23,1.90781082]
[1633059539532,3.03,139.3,139.24,1.90546034]
[1633059539735,3.03,139.3,139.25,22.93987302]
[1633059543434,3.03,139.3,139.25,40.61987302]
[1633059543635,3.03,139.3,139.25,17.68]
[1633059544234,46.01320482,139.3,139.25,17.68]
[1633059544434,46.01320482,139.3,139.19,1.93766606]
[1633059544839,51.64863443,139.3,139.18,25.64418057]
[1633059545038,51.64863443,139.3,139.18,23.70802035]
[1633059545237,46.01320482,139.3,139.18,23.70802035]
[1633059545436,19.22390831,139.3,139.18,28.67067606]
[1633059545635,19.22390831,139.3,139.19,1.92025606]
[1633059545835,19.22390831,139.3,139.2,1.92037173]
[1633059546036,19.22390831,139.3,139.21,22.34767823]
[1633059550340,19.22390831,139.3,139.21,38.98567823]
[1633059550839,93.82020831,139.3,139.21,38.98567823]
[1633059551438,19.22390831,139.3,139.21,38.98567823]
[1633059553037,19.22390831,139.3,139.21,16.638]
[1633059553239,46.01320482,139.3,139.17,361.59690482]
[1633059553839,76.01320482,139.3,139.17,361.59690482]
[1633059554040,106.01320482,139.3,139.18,29.81333777]
[1633059554640,78.7713,139.29,139.18,29.81333777]
[1633059554840,3.03,139.28,139.18,29.81333777]
[1633059555442,3.03,139.28,139.17,361.60128238]
[1633059555640,19.22390831,139.28,139.17,361.60128238]
[1633059556040,19.22390831,139.28,139.17,359.67639899]
[1633059556242,19.22390831,139.28,139.17,361.6060018]
[1633059556441,19.22390831,139.28,139.17,387.913985]
[1633059557951,19.22390831,139.28,139.18,1.91618759]
[1633059558549,19.22390831,139.28,139.17,387.90380717]
[1633059558949,19.22390831,139.28,139.18,1.92261156]
[1633059559871,19.22390831,139.28,139.19,1.92494519]
[1633059560272,19.22390831,139.28,139.2,25.68343961]
[1633059560870,19.22390831,139.28,139.2,27.6240367]
[1633059562473,19.22390831,139.28,139.2,1.94059709]
[1633059562674,19.22390831,139.28,139.19,1.94665721]
[1633059563073,24.85933792,139.28,139.18,1.95423181]
[1633059563273,34.358345,139.28,139.18,1.95423181]
[1633059564273,60.0,139.27,139.18,1.95423181]
[1633059564476,3.03,139.26,139.18,1.95423181]
[1633059564674,19.44057498,139.26,139.18,1.95423181]
[1633059567678,19.44057498,139.26,139.19,1.94872432]
[1633059569278,74.51473964,139.26,139.17,1.96285962]
[1633059569478,46.41057498,139.25,139.17,1.96285962]
[1633059569680,3.03,139.24,139.17,1.96285962]
[1633059569879,3.03,139.24,139.18,1.96476624]
[1633059570682,19.44057498,139.24,139.17,1.97051021]
[1633059571080,19.44057498,139.24,139.18,1.98230561]
[1633059571679,19.44057498,139.24,139.17,1.98153389]
[1633059573082,19.44057498,139.24,139.18,1.95046885]
[1633059573682,19.44057498,139.24,139.17,1.95873059]
[1633059574883,19.44057498,139.24,139.17,31.81820199]
[1633059575086,3.03,139.24,139.18,1.95763189]
[1633059575281,3.03,139.24,139.21,26.19343381]
[1633059575482,3.03,139.24,139.21,52.11735525]
[1633059575684,3.03,139.27,139.22,1.93585932]
[1633059576484,3.03,139.29,139.22,1.93585932]
[1633059576684,3.03,139.31,139.25,24.67128549]
[1633059576883,3.03,139.31,139.25,43.31204204]
[1633059577084,3.03,139.31,139.25,18.64075655]
[1633059577284,3.03,139.31,139.25,16.727]
[1633059578488,3.03,139.31,139.22,1.91790045]
[1633059578692,19.29613054,139.31,139.22,1.91790045]
[1633059578888,19.29613054,139.31,139.21,1.92008313]
[1633059579488,49.29613054,139.31,139.21,1.92008313]
[1633059579886,49.29613054,139.31,139.23,1.90556606]
[1633059580086,33.03,139.31,139.24,24.56446426]
[1633059580285,3.03,139.31,139.24,26.46155029]
[1633059580486,3.03,139.31,139.25,1.88452342]
[1633059580687,3.03,139.31,139.22,1.90748792]
[1633059580887,19.29613054,139.31,139.21,1.91610129]
[1633059581488,19.29613054,139.31,139.24,1.90280958]
[1633059581690,19.29613054,139.31,139.23,1.92492612]
[1633059583490,79.29613054,139.31,139.23,1.92492612]
[1633059583890,49.29613054,139.31,139.23,1.92492612]
[1633059584089,19.29613054,139.31,139.23,1.92492612]
[1633059584692,19.29613054,139.31,139.24,24.36370593]
[1633059584891,3.03,139.31,139.24,44.55758004]
[1633059585092,3.03,139.31,139.25,1.91607829]
[1633059585492,3.03,139.31,139.24,26.30577885]
[1633059587094,3.03,139.31,139.25,1.94931982]
[1633059587295,3.03,139.31,139.25,22.15731982]
[1633059587696,3.03,139.31,139.24,1.95669157]
[1633059588396,3.03,139.31,139.25,27.1522202]
[1633059589598,3.03,139.31,139.25,29.10906645]
[1633059589997,3.03,139.31,139.25,27.1522202]
[1633059590399,3.03,139.31,139.25,29.10878006]
[1633059590598,3.03,139.31,139.26,1.95952338]
[1633059590798,3.03,139.31,139.25,27.1522202]
[1633059590799,3.03,139.31,139.25,29.11315219]
[1633059590999,3.03,139.31,139.26,1.95786464]
[1633059591801,3.03,139.31,139.25,29.11007962]
[1633059592401,3.03,139.31,139.26,1.95637626]
[1633059592800,3.03,139.31,139.25,29.11379711]
[1633059595401,3.03,139.31,139.25,34.74922672]
[1633059596001,3.03,139.34,139.25,34.74922672]
[1633059596608,3.03,139.34,139.25,29.11379711]
[1633059597004,3.03,139.34,139.25,34.74922672]
[1633059597202,3.03,139.34,139.25,29.11379711]
[1633059597605,3.03,139.34,139.26,1.95895316]
[1633059601207,1.63145328,139.26,139.25,27.1522202]
[1633059602907,1.63145328,139.26,139.25,41.10141866]
[1633059603310,1.63145328,139.26,139.25,35.46598905]
[1633059603908,1.63145328,139.26,139.25,41.10141866]
[1633059604108,1.63145328,139.26,139.25,35.46598905]
[1633059604508,1.63145328,139.26,139.25,39.33269488]
[1633059604709,1.63145328,139.26,139.25,44.96812449]
[1633059605009,1.63145328,139.26,139.25,39.33269488]
[1633059605710,1.63145328,139.26,139.25,35.46598905]
[1633059605909,1.63145328,139.26,139.25,39.37804851]
[1633059606310,1.63145328,139.26,139.25,45.01347812]
[1633059606510,1.63145328,139.26,139.25,39.37804851]
[1633059610514,1.63145328,139.26,139.25,12.22582831]
[1633059610717,1.63145328,139.26,139.25,3.91205946]
[1633059611116,1.63145328,139.26,139.24,4.03317925]
[1633059611315,1.63145328,139.26,139.22,4.05737915]
[1633059611517,1.63145328,139.26,139.24,4.03973464]
[1633059611915,1.63145328,139.26,139.24,12.35516955]
[1633059612915,1.63145328,139.26,139.25,4.03463215]
[1633059613318,1.63145328,139.26,139.24,12.35734306]
[1633059614620,1.63145328,139.26,139.24,8.31543491]
[1633059614820,1.63145328,139.26,139.23,4.05750883]
[1633059615720,1.63145328,139.26,139.23,28.20527646]
[1633059615919,1.63145328,139.26,139.24,8.31610327]
[1633059616120,1.63145328,139.26,139.23,4.05750883]
[1633059616320,1.63145328,139.26,139.24,4.0354726]
[1633059616520,1.63145328,139.26,139.23,4.02367495]
[1633059617521,1.63145328,139.26,139.23,12.33963262]
[1633059617922,1.63145328,139.26,139.24,4.04090034]
[1633059618125,1.63145328,139.26,139.22,4.05523028]
[1633059618522,1.63145328,139.26,139.21,4.05603718]
[1633059619124,1.63145328,139.26,139.22,4.0508976]
[1633059619323,1.63145328,139.26,139.22,12.36761037]
[1633059619525,1.63145328,139.26,139.23,4.03640875]
[1633059621328,1.63145328,139.26,139.22,12.35378511]
[1633059621527,1.63145328,139.26,139.24,31.76728865]
[1633059621726,1.63145328,139.26,139.24,23.45105287]
[1633059622329,1.63145328,139.26,139.22,4.02346455]
[1633059624129,1.63145328,139.26,139.21,12.36477061]
[1633059626630,1.63145328,139.26,139.21,4.04884385]
[1633059626835,1.63145328,139.26,139.18,12.41270579]
[1633059626836,37.19024979,139.26,139.18,12.41270579]
[1633059627036,37.19024979,139.26,139.18,8.31842483]
[1633059627232,59.16403216,139.26,139.18,8.31842483]
[1633059627632,59.16403216,139.26,139.17,354.53270141]
[1633059629833,53.52860255,139.26,139.18,29.68638909]
[1633059630034,1.63145328,139.26,139.18,57.51064537]
[1633059630235,1.63145328,139.26,139.19,8.31708707]
[1633059630634,1.63145328,139.26,139.2,4.00028537]
[1633059630833,1.63145328,139.26,139.21,30.01197228]
[1633059631032,1.63145328,139.26,139.21,52.44497228]
[1633059632736,1.63145328,139.26,139.22,17.94061987]
[1633059632934,1.63145328,139.26,139.23,8.31497352]
[1633059633132,1.63145328,139.26,139.24,25.81958934]
[1633059634736,1.63145328,139.26,139.24,43.52658934]
[1633059637536,1.63145328,139.26,139.25,8.31425793]
[1633059638940,1.13145328,139.26,139.25,8.31425793]
[1633059640142,1.13145328,139.26,139.25,12.28108967]
[1633059641241,79.158,139.37,139.25,12.28108967]
[1633059641441,3.03,139.36,139.25,13.94968754]
[1633059641640,69.76474498,139.38,139.25,13.94968754]
[1633059641641,3.03,139.35,139.27,3.91220483]
[1633059641843,3.03,139.35,139.28,25.15971871]
[1633059642043,3.03,139.35,139.29,8.31101975]
[1633059642240,3.03,139.38,139.29,8.31101975]
[1633059642439,3.03,139.38,139.29,12.1919177]
[1633059642841,3.03,139.38,139.3,8.31061547]
[1633059643043,3.03,139.38,139.31,22.96600885]
[1633059645242,3.03,139.38,139.27,79.34175992]
[1633059645444,89.00876028,139.38,139.27,72.4219]
[1633059645644,104.4392797,139.38,139.3,490.02683005]
[1633059645843,104.4392797,139.38,139.24,3.93584595]
[1633059646042,104.4392797,139.38,139.24,12.2488714]
[1633059646241,104.4392797,139.38,139.25,23.10325954]
[1633059646844,134.4392797,139.38,139.25,23.10325954]
[1633059647846,164.4392797,139.38,139.25,23.10325954]
[1633059648250,79.0706,139.37,139.25,23.10325954]
[1633059648448,3.03,139.36,139.26,8.31197374]
[1633059648846,3.03,139.36,139.25,56.03775154]
[1633059648847,3.03,139.36,139.25,46.49025954]
[1633059649046,3.03,139.36,139.25,23.10325954]
[1633059651651,3.03,139.36,139.25,26.13325954]
[1633059651848,3.03,139.36,139.26,8.31216061]
[1633059652450,3.03,139.36,139.26,32.27998171]
[1633059652651,3.03,139.36,139.27,8.31160149]
[1633059652851,3.03,139.36,139.28,29.05837527]
[1633059654052,3.03,139.36,139.29,8.31037959]
[1633059654256,3.03,139.36,139.29,13.9458092]
[1633059654653,3.03,139.36,139.29,5.63542961]
[1633059655051,3.03,139.36,139.28,33.06468248]
[1633059655259,3.03,139.36,139.28,29.05837527]
[1633059657655,3.03,139.36,139.28,34.69380488]
[1633059657855,3.03,139.36,139.29,8.30996536]
[1633059658282,3.03,139.36,139.29,13.94539497]
[1633059658481,3.03,139.36,139.3,8.30985907]
[1633059658685,3.03,139.36,139.31,25.28528882]
[1633059658882,3.03,139.36,139.31,42.85128882]
[1633059659083,3.03,139.39,139.31,42.85128882]
[1633059662286,3.03,139.39,139.31,418.29422003]
[1633059662485,3.03,139.39,139.32,8.30913181]
[1633059663686,3.03,139.39,139.31,400.72822003]
[1633059664288,3.03,139.39,139.32,8.30927619]
[1633059665488,3.03,139.39,139.32,12.24907108]
[1633059665688,3.03,139.39,139.32,17.88450069]
[1633059666091,3.03,139.39,139.33,8.30875923]
[1633059666291,3.03,139.41,139.34,29.29170458]
[1633059666491,3.03,139.41,139.34,34.92713419]